bitfinex/quotes_ETHUSD_20251116
["timestamp","ask_amount","ask_price","bid_price","bid_amount"]
[1763327090717,0.68941843,3085.8,3085.3,0.4847]
[1763327090917,0.5087596,3085.9,3085.3,0.4847]
[1763327091114,0.68942143,3085.8,3085.3,0.4847]
[1763327091362,0.68942143,3085.7,3085.3,0.4847]
[1763327091517,0.68940684,3085.6,3085.3,0.4847]
[1763327091717,0.5087596,3085.9,3085.3,0.4847]
[1763327091718,0.68947167,3085.8,3085.3,0.4847]
[1763327091954,0.5087596,3085.9,3085.3,0.4847]
[1763327094221,0.69003898,3085.8,3085.3,0.4847]
[1763327094544,0.508731,3086.2,3085.4,0.405504]
[1763327094749,0.86170491,3086.6,3086.1,0.121]
[1763327094963,0.69011934,3086.5,3086.1,0.121]
[1763327095253,0.69011934,3086.4,3086.2,0.4761]
[1763327095457,0.86170491,3086.7,3086.2,0.4761]
[1763327095458,0.69011934,3086.3,3086.2,0.4761]
[1763327096033,0.002,3087.1,3086.3,0.405504]
[1763327096224,0.69099768,3087.0,3086.3,0.405504]
[1763327096558,0.69099768,3086.9,3086.4,0.4761]
[1763327096759,0.002,3087.1,3086.4,0.4761]
[1763327096926,0.69096089,3087.0,3086.4,0.4761]
[1763327097255,0.69096089,3086.9,3086.4,0.4761]
[1763327097434,0.002,3087.1,3086.4,0.4761]
[1763327097634,0.69095678,3087.0,3086.4,0.4761]
[1763327097848,0.69095678,3086.9,3086.4,0.4761]
[1763327098043,0.51058897,3087.1,3086.4,0.4761]
[1763327098252,0.69100684,3087.0,3086.4,0.4761]
[1763327098454,0.51058897,3087.1,3086.4,0.4761]
[1763327098657,0.69098538,3087.0,3086.4,0.4761]
[1763327098858,0.002,3087.1,3086.2,0.405504]
[1763327099060,0.69098509,3087.0,3086.1,0.121]
[1763327099262,0.99096185,3086.9,3086.2,0.4761]
[1763327099561,0.69098509,3086.8,3086.2,0.4761]
[1763327099856,0.69098509,3086.7,3086.2,0.4761]
[1763327100156,0.86370491,3087.1,3086.2,0.4761]
[1763327100157,0.86573859,3087.1,3086.2,0.4761]
[1763327100344,0.99110224,3087.0,3086.2,0.4761]
[1763327100545,0.99110224,3086.9,3086.2,0.4761]
[1763327100763,0.86573859,3087.1,3086.2,0.4761]
[1763327100764,0.69109496,3086.8,3086.2,0.4761]
[1763327100936,0.69109496,3086.7,3086.2,0.4761]
[1763327101129,0.86573859,3087.1,3086.2,0.4761]
[1763327101324,0.99127947,3087.0,3086.3,0.405504]
[1763327101528,0.6912352,3086.9,3086.3,0.405504]
[1763327101731,0.6912352,3086.8,3086.4,0.4761]
[1763327101964,1.06720644,3087.1,3086.4,0.4761]
[1763327102164,1.06720644,3087.1,3086.1,0.121]
[1763327102165,0.86373859,3086.9,3086.1,0.121]
[1763327102332,1.17672653,3086.8,3086.1,0.121]
[1763327102663,0.69119383,3086.7,3086.1,0.121]
[1763327102864,0.69119383,3086.6,3085.7,0.4761]
[1763327103070,1.85502894,3086.5,3085.2,0.1851]
[1763327103253,0.86373859,3085.9,3085.0,0.001]
[1763327103429,0.86373859,3085.4,3085.0,0.001]
[1763327103762,0.69119383,3085.3,3085.1,0.1122]
[1763327103971,0.86373859,3085.6,3085.0,0.001]
[1763327103972,0.69119383,3085.2,3085.0,0.001]
[1763327104175,3.79912347,3086.4,3085.0,0.001]
[1763327104176,0.99098944,3085.1,3085.0,0.001]
[1763327104481,2.04004383,3085.1,3085.0,0.001]
[1763327104666,1.17630524,3085.1,3085.0,0.001]
[1763327104866,0.99083244,3085.1,3085.0,0.001]
[1763327105067,0.69105474,3085.1,3085.0,0.001]
[1763327105269,1.46552573,3085.1,3085.0,0.001]
[1763327105474,9.59964962,3085.1,3085.0,0.001]
[1763327105639,7.87623979,3085.1,3083.5,0.001]
[1763327105842,0.182,3084.8,3084.4,0.001]
[1763327106144,1.85357933,3084.8,3084.4,0.001]
[1763327106684,0.99082573,3084.8,3084.4,0.001]
[1763327106877,1.85357933,3084.8,3084.4,0.001]
[1763327107078,1.46552573,3084.8,3084.4,0.001]
[1763327107364,1.1837408,3084.7,3084.4,0.001]
[1763327107564,2.85592929,3084.5,3084.4,0.001]
[1763327107867,0.99082573,3084.5,3084.4,0.001]
[1763327108227,1.46552573,3084.5,3084.4,0.001]
[1763327108514,2.61221695,3084.5,3084.4,0.001]
[1763327108999,1.1337408,3084.4,3081.3,1.60912346]
[1763327109307,0.05,3082.0,3080.5,1.6121384]
[1763327109466,0.69105474,3082.7,3081.7,6.41071406]
[1763327109662,0.6612,3084.0,3081.7,6.41071406]
[1763327109898,0.6612,3084.0,3082.6,0.188]
[1763327109899,0.4747,3083.9,3082.6,0.188]
[1763327110263,0.68005357,3084.3,3082.7,6.81621806]
[1763327110383,0.6567,3084.9,3082.9,0.405504]
[1763327110789,0.182,3084.9,3082.9,0.405504]
[1763327111108,0.4747,3084.8,3082.9,0.405504]
[1763327111305,0.4747,3084.8,3083.1,0.405504]
[1763327111920,0.4747,3084.8,3083.3,0.405504]
[1763327112386,0.4747,3084.8,3082.8,0.405504]
[1763327112717,0.29761406,3084.7,3083.0,0.405504]
[1763327112874,0.50914308,3084.4,3083.2,0.405504]
[1763327113072,0.182,3085.2,3083.4,0.405504]
[1763327113289,0.4747,3085.4,3084.4,0.405504]
[1763327113488,0.4747,3086.0,3084.5,0.4761]
[1763327113692,0.182,3086.6,3084.8,1.5392448]
[1763327114019,0.182,3086.6,3084.6,0.405504]
[1763327114020,0.4747,3086.5,3084.6,0.405504]
[1763327114295,0.4747,3086.5,3084.8,0.405504]
[1763327114817,0.4747,3086.5,3084.7,0.405504]
[1763327115106,0.4747,3086.5,3084.7,0.881604]
[1763327116086,0.50877589,3086.1,3084.7,0.881604]
[1763327116810,0.182,3086.6,3084.9,0.405504]
[1763327117198,0.50876664,3086.4,3085.1,0.405504]
[1763327117382,0.182,3086.6,3085.1,0.405504]
[1763327117585,0.182,3086.6,3084.6,1.1337408]
[1763327117586,0.182,3086.6,3085.3,0.405504]
[1763327117848,0.1897,3085.4,3083.8,0.74473051]
[1763327118001,0.1897,3084.2,3082.7,0.466]
[1763327118190,0.1897,3085.4,3082.6,0.188]
[1763327118191,1.16030922,3085.3,3082.8,0.466]
[1763327118385,0.4542,3085.3,3082.9,5.72860716]
[1763327118696,0.1897,3085.4,3083.0,1.08546072]
[1763327118697,0.4542,3085.2,3083.0,1.08546072]
[1763327118902,0.4542,3085.2,3083.0,2.21920152]
[1763327119115,0.4542,3085.2,3083.1,0.466]
[1763327119489,0.1897,3085.4,3083.1,0.466]
[1763327119694,0.1897,3085.4,3083.2,0.405504]
[1763327120189,0.1897,3085.4,3083.4,0.405504]
[1763327120589,0.1897,3085.4,3083.3,0.466]
[1763327120590,0.4542,3085.3,3083.6,0.405504]
[1763327120789,0.4542,3085.3,3083.5,0.466]
[1763327121102,0.4542,3085.3,3083.6,0.405504]
[1763327121302,0.4542,3085.3,3083.5,0.466]
[1763327122062,0.4542,3085.3,3083.6,0.405504]
[1763327122711,0.4542,3085.3,3083.3,0.4846]
[1763327122929,0.4542,3085.3,3083.4,0.405504]
[1763327123112,0.4542,3085.3,3083.6,0.405504]
[1763327123521,0.4542,3085.3,3083.8,0.405504]
[1763327124014,0.4562,3085.3,3083.8,0.405504]
[1763327125959,0.4562,3085.3,3083.5,0.4856]
[1763327126139,0.05,3085.2,3083.5,0.001]
[1763327126516,0.4506,3085.1,3083.5,0.001]
[1763327126851,0.4506,3085.1,3083.6,0.405504]
[1763327127416,0.4506,3085.1,3083.7,0.405504]
[1763327127650,0.002,3085.3,3083.7,0.405504]
[1763327127864,0.002,3085.3,3083.5,0.001]
[1763327127865,0.002,3085.3,3083.9,0.405504]
[1763327128154,0.4526,3085.3,3083.9,0.405504]
[1763327129170,0.50897613,3085.0,3083.9,0.405504]
[1763327129373,0.50897613,3085.0,3083.5,0.891104]
[1763327129537,0.95957613,3085.0,3083.6,0.4846]
[1763327129967,0.50897613,3085.0,3083.7,0.405504]
[1763327130271,0.50897613,3085.0,3083.9,0.405504]
[1763327130445,0.002,3085.3,3084.1,0.405504]
[1763327130630,0.002,3085.3,3085.2,0.591604]
[1763327131171,0.002,3085.3,3085.2,1.076204]
[1763327132858,0.002,3085.3,3085.2,0.405504]
[1763327133058,0.002,3085.3,3085.2,0.890104]
[1763327134563,0.002,3085.3,3084.7,0.1882]
[1763327134763,0.002,3085.3,3083.5,0.001]
[1763327134971,0.4526,3085.3,3084.3,0.1882]
[1763327135581,0.4526,3085.3,3083.6,0.4846]
[1763327135751,0.4526,3085.3,3084.1,0.1099]
[1763327136270,0.4526,3085.3,3084.2,0.405504]
[1763327138287,0.4526,3085.3,3083.7,0.405504]
[1763327138481,0.4526,3085.3,3083.6,0.4846]
[1763327138849,0.4526,3085.3,3083.7,0.405504]
[1763327140312,0.4526,3085.3,3083.8,0.405504]
[1763327140787,0.4526,3085.3,3084.0,0.405504]
[1763327141178,0.4526,3085.3,3083.5,0.406504]
[1763327141378,0.29916105,3085.2,3083.6,0.4846]
[1763327141564,0.29916105,3085.2,3083.7,0.405504]
[1763327141765,0.4506,3085.1,3083.7,0.405504]
[1763327141980,0.29916105,3085.0,3083.7,0.405504]
[1763327142458,0.4506,3084.9,3083.7,0.405504]
[1763327143156,0.68928538,3085.3,3083.9,0.405504]
[1763327143460,0.74980136,3085.2,3084.0,0.405504]
[1763327143696,0.002,3085.3,3084.0,6.81768552]
[1763327143900,0.002,3085.3,3084.2,0.405504]
[1763327144340,0.002,3085.3,3084.4,0.405504]
[1763327144927,0.002,3085.3,3084.6,0.405504]
[1763327145427,0.002,3085.3,3084.8,0.405504]
[1763327145924,0.002,3085.3,3084.9,0.405504]
[1763327146123,0.002,3085.3,3084.4,0.405504]
[1763327147028,0.50888088,3085.1,3084.1,0.1099]
[1763327147728,0.95948088,3085.1,3084.1,0.1099]
[1763327147955,0.50888088,3085.1,3084.2,0.405504]
[1763327149859,0.4526,3085.3,3083.5,0.001]
[1763327150059,0.29949282,3085.2,3083.6,6.89678152]
[1763327150359,0.4526,3085.3,3083.5,0.001]
[1763327150656,0.29952329,3085.2,3083.6,6.89678152]
[1763327150858,0.75012329,3085.2,3083.7,0.890104]
[1763327151158,0.75012329,3085.2,3083.5,0.001]
[1763327151159,0.50900052,3084.9,3083.5,0.001]
[1763327151327,0.4527,3084.8,3083.5,0.406504]
[1763327151522,0.4527,3084.8,3083.5,0.001]
[1763327151737,0.002,3085.3,3083.6,0.4695]
[1763327151738,0.96169769,3085.2,3083.6,0.4695]
[1763327152059,0.46487625,3085.1,3083.7,0.405504]
[1763327152360,0.002,3085.3,3083.7,0.405504]
[1763327152561,0.4527,3085.2,3083.9,0.405504]
[1763327153027,0.4527,3085.2,3084.1,0.405504]
[1763327153436,0.4527,3085.2,3084.3,0.405504]
[1763327154464,0.002,3085.3,3084.5,0.405504]
[1763327154836,0.002,3085.3,3084.7,0.405504]
[1763327155438,0.4547,3085.3,3084.3,0.405504]
[1763327155774,0.002,3085.3,3084.2,0.405504]
[1763327156225,0.002,3085.3,3084.3,0.4695]
[1763327156662,0.4547,3085.3,3084.2,0.405504]
[1763327156958,0.4547,3085.3,3083.4,0.1882]
[1763327157260,0.4547,3085.3,3083.0,0.4695]
[1763327157261,1.15929356,3085.2,3083.1,0.1883]
[1763327157568,1.484067,3085.1,3083.1,0.1883]
[1763327157760,0.29955879,3085.0,3083.1,0.1883]
[1763327157924,0.4527,3084.9,3083.1,0.1883]
[1763327158129,0.29955879,3084.8,3083.2,0.405504]
[1763327158323,0.29955879,3084.8,3083.1,0.1883]
[1763327158535,0.4527,3084.7,3083.2,0.405504]
[1763327158771,0.29955879,3084.6,3083.1,0.6578]
[1763327158925,0.4527,3084.7,3083.2,0.405504]
[1763327159126,0.4527,3084.6,3083.2,0.405504]
[1763327160567,0.86173477,3085.3,3083.7,0.405504]
[1763327160752,0.75207834,3085.2,3083.7,0.405504]
[1763327160954,0.29937834,3085.1,3083.7,0.405504]
[1763327161265,1.44244698,3085.1,3083.1,0.1883]
[1763327161449,1.44244698,3085.1,3082.5,0.4695]
[1763327161450,0.4899,3083.6,3082.5,0.4695]
[1763327161765,0.4899,3083.6,3082.2,0.188]
[1763327161766,0.1858,3084.4,3083.5,0.467]
[1763327161929,0.1858,3084.4,3083.6,0.405504]
[1763327162126,0.6385,3084.4,3083.6,0.405504]
[1763327162332,0.86173477,3085.1,3084.4,0.405504]
[1763327162333,0.002,3085.1,3084.4,0.405504]
[1763327163462,0.002,3085.1,3084.2,0.405504]
[1763327163668,0.002,3085.1,3084.5,0.405504]
[1763327164382,0.002,3085.1,3084.6,0.405504]
[1763327164770,0.002,3085.1,3084.8,0.405504]
[1763327164970,0.002,3085.1,3085.0,0.466]
[1763327165373,0.002,3085.1,3084.6,0.405504]
[1763327165886,0.002,3085.1,3084.8,0.405504]
[1763327166218,0.002,3085.1,3085.0,0.871504]
[1763327166497,0.002,3085.1,3085.0,1.6609689]
[1763327166702,0.002,3085.1,3085.0,2.1304689]
[1763327167877,0.002,3085.7,3085.3,0.405504]
[1763327168082,0.002,3085.7,3085.6,0.871504]
[1763327168573,0.002,3085.7,3085.6,1.341004]
[1763327168768,0.002,3085.7,3085.6,0.871504]
[1763327168999,0.002,3085.7,3085.0,1.2589649]
[1763327169210,0.002,3085.7,3085.1,0.4695]
[1763327169403,0.002,3085.7,3084.4,0.4695]
[1763327169678,0.4547,3085.7,3084.4,0.4695]
[1763327170173,0.4547,3085.7,3084.1,0.1883]
[1763327170428,0.4547,3085.7,3084.2,0.4695]
[1763327170986,0.4547,3085.7,3084.3,0.405504]
[1763327171186,0.4547,3085.7,3084.3,0.4695]
[1763327171386,0.4547,3085.7,3084.4,0.405504]
[1763327171635,0.4547,3085.7,3084.6,0.405504]
[1763327171990,0.4547,3085.7,3084.8,0.405504]
[1763327172493,0.002,3085.7,3085.0,0.405504]
[1763327172689,0.002,3085.7,3085.2,0.405504]
[1763327172893,0.002,3085.7,3085.6,0.871504]
[1763327173620,0.002,3085.7,3085.6,1.341004]
[1763327173801,0.002,3085.7,3085.6,0.871504]
[1763327174487,0.002,3085.7,3084.5,1.1337408]
[1763327174691,0.002,3085.7,3084.7,0.4695]
[1763327174887,0.002,3085.7,3084.8,0.405504]
[1763327175115,0.002,3085.7,3084.8,0.875004]
[1763327175318,0.4527,3085.6,3084.3,0.4695]
[1763327175790,0.4527,3085.6,3084.4,0.405504]
[1763327176014,0.4527,3085.6,3084.3,0.4695]
[1763327176414,0.4527,3085.6,3083.9,0.4892]
[1763327177033,0.4527,3085.6,3084.2,0.405504]
[1763327177240,0.4527,3085.6,3084.2,0.894704]
[1763327178528,0.4527,3085.6,3084.2,0.405504]
[1763327179101,0.4527,3085.6,3083.5,1.1347408]
[1763327179102,0.4527,3085.6,3083.6,0.4892]
[1763327179313,0.4527,3085.6,3083.7,0.16239408]
[1763327179516,0.002,3085.7,3083.7,0.16239408]
[1763327179517,0.002,3085.7,3084.0,1.5392448]
[1763327179697,0.002,3085.7,3085.6,1.079904]
[1763327180026,0.6573,3086.9,3085.6,1.079904]
[1763327180027,0.002,3087.1,3086.7,0.405504]
[1763327180202,0.002,3087.1,3086.9,0.405504]
[1763327180604,0.002,3087.1,3087.0,0.0011]
[1763327181332,0.1958,3089.0,3087.0,0.0011]
[1763327181502,0.1958,3089.0,3087.6,0.405504]
[1763327181715,0.1958,3089.0,3087.5,7.02314497]
[1763327181716,0.1958,3089.0,3087.8,0.405504]
[1763327181918,0.1958,3089.0,3088.0,0.405504]
[1763327182124,0.1958,3090.0,3088.0,1.5392448]
[1763327182355,0.6805,3090.0,3089.0,0.405504]
[1763327182772,0.6805,3090.0,3088.1,0.4971]
[1763327182773,0.4847,3089.9,3088.2,0.405504]
[1763327183059,0.99290162,3089.9,3088.3,0.405504]
[1763327183260,0.1868,3090.3,3089.0,0.405504]
[1763327183573,0.1868,3090.6,3089.5,0.405504]
[1763327183951,0.1868,3090.6,3089.1,0.9277649]
[1763327184270,0.1868,3090.6,3089.2,0.902604]
[1763327184271,0.4847,3090.5,3089.2,0.902604]
[1763327184432,0.4847,3090.5,3088.9,0.405504]
[1763327185020,0.4847,3090.5,3088.9,0.902604]
[1763327185854,0.4847,3090.5,3088.9,0.405504]
[1763327186447,0.4847,3090.5,3089.1,0.405504]
[1763327186823,0.508129,3090.4,3089.2,0.405504]
[1763327187019,0.508129,3090.4,3088.9,0.405504]
[1763327187249,0.508129,3090.4,3089.1,0.405504]
[1763327187250,0.4847,3090.3,3089.1,0.405504]
[1763327187845,0.508129,3090.4,3089.1,0.902604]
[1763327188258,0.1868,3090.6,3089.3,0.405504]
[1763327188460,0.6715,3090.6,3089.3,0.405504]
[1763327188926,0.4847,3090.5,3089.3,0.405504]
[1763327189837,0.4847,3090.5,3089.1,0.902604]
[1763327190043,0.4847,3090.5,3089.2,0.16653089]
[1763327190355,0.4847,3090.5,3089.0,0.7627049]
[1763327190552,0.1868,3089.1,3087.3,0.1984]
[1763327190750,0.4847,3090.5,3088.2,7.52024497]
[1763327190949,0.1868,3089.8,3088.4,0.405504]
[1763327191465,0.1868,3089.8,3088.4,0.902604]
[1763327191466,0.4847,3089.7,3088.4,0.902604]
[1763327191650,0.1868,3089.8,3088.4,0.902604]
[1763327191957,0.6715,3089.8,3088.6,0.405504]
[1763327192261,0.4847,3090.2,3088.6,0.405504]
[1763327192466,0.4847,3090.2,3088.8,0.405504]
[1763327193869,0.4847,3090.2,3089.0,0.405504]
[1763327194260,0.4847,3090.2,3087.7,7.02314497]
[1763327194261,0.1868,3089.1,3087.7,7.02314497]
[1763327194461,0.4847,3090.2,3087.3,0.1984]
[1763327194462,0.4847,3090.2,3088.3,0.405504]
[1763327194666,0.1868,3089.7,3088.5,0.405504]
[1763327195185,0.6715,3089.7,3088.4,0.7925749]
[1763327195339,0.6715,3089.7,3088.4,1.2896749]
[1763327195639,0.4847,3089.6,3088.4,1.2896749]
[1763327195838,0.4847,3089.6,3088.5,0.405504]
[1763327196076,0.4847,3089.6,3088.7,0.405504]
[1763327196579,0.1868,3089.8,3088.7,0.405504]
[1763327196876,0.4847,3090.2,3088.7,7.92574897]
[1763327197175,0.1868,3090.6,3088.7,7.42864897]
[1763327197376,0.4847,3090.1,3088.9,0.405504]
[1763327198241,0.4847,3090.1,3088.4,0.405504]
[1763327198438,0.002,3089.8,3088.4,0.405504]
[1763327198655,0.002,3089.8,3088.6,0.405504]
[1763327198973,0.6715,3089.7,3088.6,0.405504]
[1763327199340,0.6715,3089.7,3088.7,0.405504]
[1763327199578,0.1868,3089.7,3088.7,0.405504]
[1763327200082,0.1868,3089.7,3088.7,0.4971]
[1763327200297,0.002,3089.8,3088.7,0.4971]
[1763327200438,0.002,3089.8,3088.8,0.405504]
[1763327200993,0.4847,3089.7,3088.1,0.6955]
[1763327201291,0.4847,3089.7,3088.2,0.405504]
[1763327201782,0.1868,3088.3,3087.6,0.4971]
[1763327202147,0.4847,3088.7,3087.6,0.4971]
[1763327202543,0.4847,3088.7,3087.4,0.001]
[1763327202743,0.1868,3087.5,3087.4,0.001]
[1763327203493,0.1868,3087.8,3087.4,0.001]
[1763327203784,0.6715,3088.0,3087.4,0.001]
[1763327204787,0.1868,3088.8,3087.4,0.001]
[1763327204788,0.4847,3088.5,3087.4,0.001]
[1763327211194,0.1868,3088.4,3087.4,0.001]
[1763327211696,0.4706,3088.3,3087.4,0.001]
[1763327213374,0.50842848,3088.2,3087.4,0.001]
[1763327213923,0.1868,3088.8,3088.1,0.0992]
[1763327214210,0.50838197,3088.7,3088.1,0.0992]
[1763327214373,0.1868,3088.8,3088.1,0.0992]
[1763327214576,0.69512242,3088.8,3088.1,0.0992]
[1763327214976,0.69512242,3088.8,3088.2,0.405504]
[1763327215204,0.1868,3088.8,3088.1,0.0992]
[1763327215408,0.69514243,3088.8,3088.1,0.0992]
[1763327215636,0.1868,3088.8,3088.1,0.0992]
[1763327217210,0.1888,3088.8,3088.1,0.0992]
[1763327221002,0.002,3088.8,3088.2,0.405504]
[1763327221339,0.002,3088.8,3087.4,0.001]
[1763327221340,0.4445,3088.2,3087.4,0.001]
[1763327221539,0.4706,3088.7,3087.4,0.001]
[1763327221744,0.4706,3088.6,3087.4,0.001]
[1763327222940,0.6427,3087.5,3087.0,0.001]
[1763327223186,0.6427,3087.5,3086.7,0.001]
[1763327223187,0.4425,3087.1,3086.7,0.001]
[1763327223459,0.17764408,3087.4,3086.7,0.001]
[1763327223460,0.2026,3086.8,3086.7,0.001]
[1763327223612,0.2026,3086.8,3085.0,0.1802]
[1763327223613,0.6732,3086.8,3085.0,0.1802]
[1763327223798,0.6732,3086.8,3085.1,0.4927]
[1763327223999,0.4706,3086.7,3085.1,0.4927]
[1763327226048,0.4322,3085.2,3084.7,0.405504]
[1763327226248,0.6171,3085.2,3084.4,0.1802]
[1763327226544,0.6171,3085.2,3083.8,0.001]
[1763327226545,0.47,3085.1,3083.8,0.001]
[1763327226709,0.47,3085.1,3084.0,0.6729]
[1763327226912,0.47,3085.1,3083.8,0.001]
[1763327227515,0.1982,3084.2,3083.8,0.001]
[1763327228070,0.6688,3084.2,3083.8,0.001]
[1763327228277,0.4706,3084.1,3083.8,0.001]
[1763327228944,0.97977104,3084.1,3083.8,0.001]
[1763327229261,0.4706,3084.1,3083.8,0.001]
[1763327229562,0.4706,3084.0,3083.8,0.001]
[1763327231614,0.97976478,3084.0,3083.8,0.001]
[1763327231821,0.50916478,3084.0,3083.9,0.4927]
[1763327232017,0.2482,3086.0,3084.0,0.405504]
[1763327232251,0.5090058,3085.4,3084.0,0.405504]
[1763327232457,0.4706,3085.3,3084.2,0.405504]
[1763327232660,0.5090058,3085.4,3084.2,0.405504]
[1763327232858,0.5090058,3085.4,3084.4,0.405504]
[1763327233552,0.5090058,3085.4,3084.1,0.1802]
[1763327233553,0.9796058,3085.4,3084.2,0.405504]
[1763327233757,0.9796058,3085.4,3084.1,0.1802]
[1763327233933,0.4706,3085.3,3084.1,0.1802]
[1763327234119,0.4706,3085.3,3083.8,0.4937]
[1763327234317,0.4706,3085.3,3083.8,0.001]
[1763327235070,0.4706,3085.3,3083.8,0.00090199]
[1763327235268,0.1713,3083.9,3083.8,0.00090199]
[1763327235675,0.6531,3083.9,3083.8,0.00090199]
[1763327237497,0.6531,3083.9,3080.7,0.16885958]
[1763327237498,0.05,3083.1,3081.3,0.1951]
[1763327237638,0.1856,3082.3,3081.3,0.1951]
[1763327237837,0.1856,3082.3,3081.3,0.6518]
[1763327238150,0.1856,3082.3,3081.3,0.1951]
[1763327238151,0.6674,3082.3,3081.3,0.1951]
[1763327238362,0.4818,3082.8,3081.4,0.4567]
[1763327238572,0.1856,3082.7,3081.4,0.4567]
[1763327238952,0.1856,3082.7,3081.5,0.405504]
[1763327239473,0.1856,3082.7,3081.6,0.4567]
[1763327239680,0.1856,3082.7,3081.7,0.405504]
[1763327240081,0.1856,3082.7,3081.7,0.4567]
[1763327240750,0.1856,3082.7,3081.3,0.1951]
[1763327241080,0.1856,3083.0,3081.6,0.4567]
[1763327241081,0.6674,3083.0,3081.6,0.4567]
[1763327241245,0.6674,3083.0,3081.3,0.1951]
[1763327241246,0.4685,3082.9,3081.3,0.1951]
[1763327241446,0.4685,3082.9,3081.4,0.4889]
[1763327241860,0.05,3082.8,3081.2,0.00622562]
[1763327242064,1.1837408,3082.8,3081.2,0.00622562]
[1763327242261,0.4685,3082.7,3081.2,0.00622562]
[1763327242584,0.50939756,3082.5,3081.2,0.00622562]
[1763327242785,0.50939756,3082.5,3081.3,0.4889]
[1763327242969,0.50939756,3082.5,3081.4,0.405504]
[1763327243346,0.50939756,3082.5,3081.5,0.4889]
[1763327243701,0.6541,3083.0,3081.5,0.4889]
[1763327244195,0.6541,3083.0,3081.2,0.00622562]
[1763327244196,0.4685,3082.9,3081.2,0.00622562]
[1763327244808,0.1819,3081.3,3081.2,0.00622562]
[1763327244963,0.405504,3082.8,3080.0,0.08]
[1763327244964,0.1819,3081.4,3080.0,0.08]
[1763327245304,0.4685,3080.1,3080.0,0.08]
[1763327245801,0.17889872,3080.2,3080.0,0.08]
[1763327246002,0.1819,3080.4,3080.0,0.08]
[1763327246189,0.4685,3080.2,3080.0,0.08]
[1763327246395,0.4685,3080.2,3079.9,0.16889482]
[1763327246396,0.05,3080.1,3079.9,0.16889482]
[1763327246566,0.4685,3080.2,3079.9,0.16889482]
[1763327246567,1.43510485,3080.2,3079.9,0.16889482]
[1763327246762,0.4685,3080.1,3079.9,0.16889482]
[1763327246999,0.4685,3080.1,3077.0,1.61358808]
[1763327247201,0.1819,3079.4,3078.4,0.0012]
[1763327247503,0.50972969,3080.2,3077.8,2.09018793]
[1763327247675,0.50972969,3080.2,3078.0,1.61464405]
[1763327247676,0.05,3080.0,3078.0,1.61464405]
[1763327247880,0.4685,3080.1,3078.0,1.61464405]
[1763327248076,0.4685,3080.1,3078.2,1.67174164]
[1763327248511,0.05,3079.9,3078.2,1.67174164]
[1763327248876,0.4685,3079.8,3078.2,1.67174164]
[1763327249283,0.4685,3079.0,3077.4,1.86665815]
[1763327249574,0.50972969,3080.2,3077.5,1.93525405]
[1763327249575,0.4685,3080.1,3077.5,1.93525405]
[1763327249905,0.1819,3079.4,3077.5,1.93525405]
[1763327250113,0.4685,3079.3,3077.1,1.67642433]
[1763327250268,0.4685,3079.3,3075.8,5.74099651]
[1763327250269,0.4685,3079.3,3076.7,1.60142544]
[1763327250270,0.1452,3078.0,3076.7,1.60142544]
[1763327250467,0.1452,3078.0,3075.3,1.65544795]
[1763327250468,0.1819,3076.9,3075.3,1.65544795]
[1763327250734,0.1819,3076.9,3075.5,1.63714059]
[1763327251019,0.64839915,3076.9,3075.5,1.63714059]
[1763327251505,5.88619651,3078.0,3076.8,1.89195467]
[1763327251506,0.46649915,3077.9,3076.8,1.89195467]
[1763327251716,0.1819,3079.0,3076.8,1.89195467]
[1763327251914,0.1819,3079.0,3076.9,2.70468945]
[1763327252096,0.16437732,3078.9,3076.9,2.70468945]
[1763327252268,0.16437732,3078.9,3077.1,0.405504]
[1763327252473,0.16437732,3078.9,3076.9,0.405504]
[1763327252474,0.05,3078.8,3076.9,0.405504]
[1763327252674,0.16437732,3078.9,3076.9,2.27724025]
[1763327252884,0.16437732,3078.9,3077.0,0.4889]
[1763327253083,0.85713164,3080.4,3077.0,0.4889]
[1763327253084,1.14631303,3080.9,3080.6,0.1965]
[1763327253299,4.05833132,3082.1,3079.6,0.1965]
[1763327253300,5.74099651,3083.0,3080.7,0.405504]
[1763327253503,0.4685,3082.2,3079.8,0.4889]
[1763327253824,0.05,3080.9,3079.4,0.84984092]
[1763327254028,0.5094,3080.8,3079.4,0.84984092]
[1763327254167,0.0409,3080.8,3079.5,0.894404]
[1763327254517,0.0409,3080.8,3080.6,0.001]
[1763327254518,0.4685,3080.7,3080.6,0.001]
[1763327254728,0.0409,3080.8,3080.6,0.001]
[1763327254911,0.1819,3081.2,3080.6,0.001]
[1763327255078,0.4685,3080.8,3080.6,0.001]
[1763327255732,0.4685,3080.8,3077.4,1.60581809]
[1763327255733,0.05,3080.1,3077.4,1.60581809]
[1763327256022,0.05,3080.1,3075.5,0.1965]
[1763327256023,0.091,3077.2,3075.8,1.80676965]
[1763327256189,0.091,3077.2,3075.9,1.80413054]
[1763327256515,0.1819,3077.6,3075.9,2.27599911]
[1763327256713,0.1819,3077.6,3076.1,1.64163809]
[1763327256882,0.1819,3077.6,3076.2,1.69555446]
[1763327257081,0.1819,3077.6,3076.3,0.16955545]
[1763327257311,0.6504,3077.6,3076.4,0.0008]
[1763327257613,0.5185,3077.5,3076.4,0.0008]
[1763327257818,0.5185,3077.5,3075.5,0.6854]
[1763327258000,0.5185,3077.5,3075.6,0.0008]
[1763327258216,0.5185,3077.5,3075.6,1.68515297]
[1763327258406,0.5185,3077.5,3075.6,0.0008]
[1763327258745,0.05,3077.3,3075.2,0.0008]